{"text_format":"3","workbook":"xlsx","n_sheets":2,"sheets":["list","data"],"not_rendered":{"external_links":1},"read":"whole","date_system":"1900"}

{"sheet":"list","index":0,"n_rows":24,"n_cols":17,"rows_kept":24}
["№","СНИЛС","Фамилия",null,null,"Пол","Дата рождения","Участник с ОВЗ","Класс","Класс участия","Балл","Макс. Балл","Статус","Призер МЭ прошлого года","Учитель","Место работы учителя","Направления, виды практик  по технологии"]
[1,2,3,null,null,6,7,8,9,10,11,12,13,14,15,16,17]
[1,"15716034858",8105,null,null,"ж","2009-08-01","нет",8,8,10,50,"участник",null,"Усманова Рамзия Асыловна",{"$f":"[1]list!P3","v":"Муниципальное бюджетное общеобразовательное учреждение \"Средняя общеобразовательная школа №27\""}]
[2,"17010885642",8302,null,null,"ж","2009-11-16","нет",8,8,5,50,"участник",null,{"$f":"$O$3","v":"Усманова Рамзия Асыловна"},{"$f":"[1]list!P4","v":"Муниципальное бюджетное общеобразовательное учреждение \"Средняя общеобразовательная школа №27\""}]
[3,"17430289868",8102,null,null,"м","2009-02-05","нет",{"$f":"$I$3","v":8},{"$f":"$J$4","v":8},10,50,"участник",null,{"$f":"$O$3","v":"Усманова Рамзия Асыловна"},{"$f":"[1]list!P5","v":"Муниципальное бюджетное общеобразовательное учреждение \"Средняя общеобразовательная школа №27\""}]
[4,"18551965106",8103,null,null,"ж","2009-10-31","нет",8,8,10,50,"участник",null,{"$f":"$O$3","v":"Усманова Рамзия Асыловна"},{"$f":"[1]list!P6","v":"Муниципальное бюджетное общеобразовательное учреждение \"Средняя общеобразовательная школа №27\""}]
[5,"17294982823",8101,null,null,"м","2009-06-08","нет",8,8,11,50,"участник",null,"Усманова Рамзия Асыловна",{"$f":"[1]list!P8","v":"Муниципальное бюджетное общеобразовательное учреждение \"Средняя общеобразовательная школа №27\""}]
[6,"17314082443",8303,null,null,"м","2009-03-17","нет",8,8,7,50,"участник",null,"Усманова Рамзия Асыловна",{"$f":"[1]list!P9","v":"Муниципальное бюджетное общеобразовательное учреждение \"Средняя общеобразовательная школа №27\""}]
[7,"17147521664",8301,null,null,"ж","2009-07-31","нет",8,8,13,50,"участник",null,"Усманова Рамзия Асыловна",{"$f":"[1]list!P10","v":"Муниципальное бюджетное общеобразовательное учреждение \"Средняя общеобразовательная школа №27\""}]
[8,"17122157734",8305,null,null,"ж","2009-02-21","нет",8,8,16,50,"участник",null,"Усманова Рамзия Асыловна",{"$f":"[1]list!P11","v":"Муниципальное бюджетное общеобразовательное учреждение \"Средняя общеобразовательная школа №27\""}]
[9,"17427610369",8104,null,null,"м","2009-02-24","нет",8,8,11,50,"участник",null,"Усманова Рамзия Асыловна",{"$f":"[1]list!P12","v":"Муниципальное бюджетное общеобразовательное учреждение \"Средняя общеобразовательная школа №27\""}]
[10,"15885419518",8205,null,null,"м","2009-01-29","нет",8,8,14,50,"участник",null,"Усманова Рамзия Асыловна",{"$f":"[1]list!P13","v":"Муниципальное бюджетное общеобразовательное учреждение \"Средняя общеобразовательная школа №27\""}]
[11,"17311230316",8202,null,null,"ж","2009-10-29","нет",8,8,5,50,"участник",null,"Усманова Рамзия Асыловна",{"$f":"[1]list!P14","v":"Муниципальное бюджетное общеобразовательное учреждение \"Средняя общеобразовательная школа №27\""}]
[12,"15885427113",8204,null,null,"м","2009-05-19","нет",8,8,15,50,"участник",null,"Усманова Рамзия Асыловна",{"$f":"[1]list!P15","v":"Муниципальное бюджетное общеобразовательное учреждение \"Средняя общеобразовательная школа №27\""}]
[13,"15410091516",8201,null,null,"ж","2009-02-02","нет",8,8,13,50,"участник",null,"Усманова Рамзия Асыловна",{"$f":"[1]list!P16","v":"Муниципальное бюджетное общеобразовательное учреждение \"Средняя общеобразовательная школа №27\""}]
[14,"15589275014",8202,null,null,"м","2009-09-10","нет",8,8,9,50,"участник",null,"Усманова Рамзия Асыловна",{"$f":"[1]list!P17","v":"Муниципальное бюджетное общеобразовательное учреждение \"Средняя общеобразовательная школа №27\""}]
[15,14971206272,9106,null,null,"м","2008-02-25","нет",9,9,5,50,"участник",null,"Куликова Наталья Викторовна",{"$f":"[1]list!P18","v":"Муниципальное бюджетное общеобразовательное учреждение \"Средняя общеобразовательная школа №27\""},{"$f":"[1]list!Q18","v":0}]
[16,16208678475,9101,null,null,"м","2008-10-06","нет",9,9,2,50,"участник",null,"Куликова Наталья Викторовна",{"$f":"[1]list!P19","v":"Муниципальное бюджетное общеобразовательное учреждение \"Средняя общеобразовательная школа №27\""}]
[17,16216652453,9103,null,null,"ж","2008-05-14","нет",9,9,4,50,"участник",null,"Куликова Наталья Викторовна",{"$f":"[1]list!P20","v":"Муниципальное бюджетное общеобразовательное учреждение \"Средняя общеобразовательная школа №27\""}]
[18,16357526080,9102,null,null,"ж","2008-07-12","нет",9,9,3,50,"участник",null,"Куликова Наталья Викторовна",{"$f":"[1]list!P21","v":"Муниципальное бюджетное общеобразовательное учреждение \"Средняя общеобразовательная школа №27\""}]
[19,16953215287,9104,null,null,"ж","2008-05-26","нет",9,9,5,50,"участник",null,"Куликова Наталья Викторовна",{"$f":"[1]list!P22","v":"Муниципальное бюджетное общеобразовательное учреждение \"Средняя общеобразовательная школа №27\""}]
[20,17120077220,9105,null,null,"ж","2008-06-24","нет",9,9,6,50,"участник",null,"Куликова Наталья Викторовна",{"$f":"[1]list!P23","v":"Муниципальное бюджетное общеобразовательное учреждение \"Средняя общеобразовательная школа №27\""}]
[21,17253391771,9202,null,null,"ж","2008-04-30","нет",9,9,7,50,"участник",null,"Куликова Наталья Викторовна",{"$f":"[1]list!P24","v":"Муниципальное бюджетное общеобразовательное учреждение \"Средняя общеобразовательная школа №27\""}]
[22,17010878039,9201,null,null,"м","2008-12-24","нет",9,9,9,50,"участник",null,"Куликова Наталья Викторовна",{"$f":"[1]list!P25","v":"Муниципальное бюджетное общеобразовательное учреждение \"Средняя общеобразовательная школа №27\""}]

{"sheet":"data","index":1,"n_rows":25,"n_cols":6,"rows_kept":25}
[]
["Техника, технология и техническое творчество .  Ручная обработка древесины"]
["Техника, технология и техническое творчество .  Ручная обработка металла"]
["Техника, технология и техническое творчество .  Механическая обработка древесины"]
["Техника, технология и техническое творчество .  Механическая обработка металла"]
["Техника, технология и техническое творчество .  Электротехника"]
["Техника, технология и техническое творчество .  Робототехника"]
["Техника, технология и техническое творчество .  3d - моделирование и печать"]
["Техника, технология и техническое творчество .  Обработка материалов на лазерно-гравировальной машине"]
["Техника, технология и техническое творчество .  Промышленный дизайн"]
["Культура дома, дизайн и технологии .  Обработка швейного изделия или узла + моделирование швейных изделий"]
["Культура дома, дизайн и технологии .  Обработка швейного изделия или узла + моделирование швейных изделий с использованием графических редакторов"]
["Культура дома, дизайн и технологии .  Обработка швейного изделия или узла на швейно-вышивальном оборудовании + моделирование швейных изделий"]
["Культура дома, дизайн и технологии .  Обработка швейного изделия или узла на швейно-вышивальном оборудовании + моделирование швейных изделий с использованием графических редакторов"]
["Культура дома, дизайн и технологии .  Робототехника"]
["Культура дома, дизайн и технологии .  3d - моделирование и печать"]
["Культура дома, дизайн и технологии .  Обработка материалов на лазерно-гравировальной машине"]
["Культура дома, дизайн и технологии .  Промышленный дизайн"]
["Роботехника .  "]
["Информационная безопасность ."]
[]
[]
["участник"]
["призер",null,"да","да",null,"м"]
["победитель",null,null,"нет",null,"ж"]